{"text_format":"3","workbook":"xlsx","n_sheets":2,"sheets":["Start","Feriebudsjett Planlegger"],"not_rendered":{"defined_names":2},"read":"whole","date_system":"1900"}

{"sheet":"Start","index":0,"n_rows":4,"n_cols":2,"rows_kept":4}
[null,"Slik bruker du denne malen"]
[null,"Spor utgiftene med denne Feriebudsjett Planlegger."]
[null,"Først kan du angi Budsjett og Faktiske utgifter i hver kategoritabell."]
[null,"Feriebudsjett, Totalt faktisk beløp som er brukt, og Differanse beregnes automatisk for deg."]

{"sheet":"Feriebudsjett Planlegger","index":1,"n_rows":36,"n_cols":14,"rows_kept":36,"merged":[[0,2,5,7],[2,10,2,11],[8,2,8,5],[8,10,8,13],[18,2,18,5],[18,10,18,13],[29,2,29,5],[29,10,29,13]]}
[null,null,"Feriebudsjett \nPlanlegger"]
[]
[{"$nulls":10},"JULEBUDSJETT",null,null,{"$f":"SUM(Gaver[Budsjett],Emballasje[Budsjett],(Reise[Budsjett],(Måltider[Budsjett],(Underholdning[Budsjett],Diverse[Budsjett]))))","v":{"v":750,"d":"kr 750.00"}}]
[{"$nulls":10},"FAKTISK BRUKT",null,null,{"$f":"SUM((Gaver[Faktisk],(Emballasje[Faktisk],(Reise[Faktisk],(Måltider[Faktisk],(Underholdning[Faktisk],(Diverse[Faktisk])))))))","v":{"v":820,"d":"kr 820.00"}}]
[]
[{"$nulls":10},"FORSKJELL (over/under budsjett)",null,null,{"$f":"SUM(N3-N4)","v":{"v":-70,"d":"-kr 70.00"}}]
[]
[]
[null,null,"GAVER",{"$nulls":7},"FERIEMÅLTIDER"]
[null,null,"Artikkel","Budsjett","Faktisk","Differanse",{"$nulls":4},"Artikkel","Budsjett","Faktisk","Differanse"]
[null,null,"Familie",{"v":500,"d":"kr 500.00"},{"v":495,"d":"kr 495.00"},{"$f":"Gaver[[#This Row],[Budsjett]]-Gaver[[#This Row],[Faktisk]]","v":{"v":5,"d":"kr 5.00"}},{"$nulls":4},"Dagligvarer",null,null,{"$f":"Måltider[[#This Row],[Budsjett]]-Måltider[[#This Row],[Faktisk]]","v":{"v":0,"d":"kr 0.00"}}]
[null,null,"Venner",{"v":250,"d":"kr 250.00"},{"v":325,"d":"kr 325.00"},{"$f":"Gaver[[#This Row],[Budsjett]]-Gaver[[#This Row],[Faktisk]]","v":{"v":-75,"d":"-kr 75.00"}},{"$nulls":4},"Drikkevarer",null,null,{"$f":"Måltider[[#This Row],[Budsjett]]-Måltider[[#This Row],[Faktisk]]","v":{"v":0,"d":"kr 0.00"}}]
[null,null,"Kolleger",null,null,{"$f":"Gaver[[#This Row],[Budsjett]]-Gaver[[#This Row],[Faktisk]]","v":{"v":0,"d":"kr 0.00"}},{"$nulls":4},"Pynt",null,null,{"$f":"Måltider[[#This Row],[Budsjett]]-Måltider[[#This Row],[Faktisk]]","v":{"v":0,"d":"kr 0.00"}}]
[null,null,"Lærere, barnepiker, barnevakter og så videre.",null,null,{"$f":"Gaver[[#This Row],[Budsjett]]-Gaver[[#This Row],[Faktisk]]","v":{"v":0,"d":"kr 0.00"}},{"$nulls":4},"Andre (trykk på TAB i siste kolonnen i denne raden for å legge til rad)",null,null,{"$f":"Måltider[[#This Row],[Budsjett]]-Måltider[[#This Row],[Faktisk]]","v":{"v":0,"d":"kr 0.00"}}]
[null,null,"Veldedige bidrag",null,null,{"$f":"Gaver[[#This Row],[Budsjett]]-Gaver[[#This Row],[Faktisk]]","v":{"v":0,"d":"kr 0.00"}},{"$nulls":7},{"$f":"Måltider[[#This Row],[Budsjett]]-Måltider[[#This Row],[Faktisk]]","v":{"v":0,"d":"kr 0.00"}}]
[null,null,"Andre (trykk på TAB i siste kolonnen i denne raden for å legge til rad)",null,null,{"$f":"Gaver[[#This Row],[Budsjett]]-Gaver[[#This Row],[Faktisk]]","v":{"v":0,"d":"kr 0.00"}}]
[null,null,"Totalt",{"$f":"SUBTOTAL(109,Gaver[Budsjett])","v":{"v":750,"d":"kr 750.00"}},{"$f":"SUBTOTAL(109,Gaver[Faktisk])","v":{"v":820,"d":"kr 820.00"}},{"$f":"SUBTOTAL(109,Gaver[Differanse])","v":{"v":-70,"d":"-kr 70.00"}},{"$nulls":4},"Totalt",{"$f":"SUBTOTAL(109,Måltider[Budsjett])","v":{"v":0,"d":"kr 0.00"}},{"$f":"SUBTOTAL(109,Måltider[Faktisk])","v":{"v":0,"d":"kr 0.00"}},{"$f":"SUBTOTAL(109,Måltider[Differanse])","v":{"v":0,"d":"kr 0.00"}}]
[]
[null,null,"EMBALLASJE",{"$nulls":7},"UNDERHOLDNING"]
[null,null,"Artikkel","Budsjett","Faktisk","Differanse",{"$nulls":4},"Artikkel","Budsjett","Faktisk","Differanse"]
[null,null,"Gaveinnpakning",null,null,{"$f":"Emballasje[[#This Row],[Budsjett]]-Emballasje[[#This Row],[Faktisk]]","v":{"v":0,"d":"kr 0.00"}},{"$nulls":4},"Arrangementshjelp (bartender, catering, vaskehjelp og så videre)",null,null,{"$f":"Underholdning[[#This Row],[Budsjett]]-Underholdning[[#This Row],[Faktisk]]","v":{"v":0,"d":"kr 0.00"}}]
[null,null,"Gavelapper",null,null,{"$f":"Emballasje[[#This Row],[Budsjett]]-Emballasje[[#This Row],[Faktisk]]","v":{"v":0,"d":"kr 0.00"}},{"$nulls":4},"Pynt",null,null,{"$f":"Underholdning[[#This Row],[Budsjett]]-Underholdning[[#This Row],[Faktisk]]","v":{"v":0,"d":"kr 0.00"}}]
[null,null,"Utstyr (bånd, tape og så videre)",null,null,{"$f":"Emballasje[[#This Row],[Budsjett]]-Emballasje[[#This Row],[Faktisk]]","v":{"v":0,"d":"kr 0.00"}},{"$nulls":4},"Mat og drikkevarer",null,null,{"$f":"Underholdning[[#This Row],[Budsjett]]-Underholdning[[#This Row],[Faktisk]]","v":{"v":0,"d":"kr 0.00"}}]
[null,null,"Esker",null,null,{"$f":"Emballasje[[#This Row],[Budsjett]]-Emballasje[[#This Row],[Faktisk]]","v":{"v":0,"d":"kr 0.00"}},{"$nulls":4},"Klær",null,null,{"$f":"Underholdning[[#This Row],[Budsjett]]-Underholdning[[#This Row],[Faktisk]]","v":{"v":0,"d":"kr 0.00"}}]
[null,null,"Porto",null,null,{"$f":"Emballasje[[#This Row],[Budsjett]]-Emballasje[[#This Row],[Faktisk]]","v":{"v":0,"d":"kr 0.00"}},{"$nulls":4},"Billetter",null,null,{"$f":"Underholdning[[#This Row],[Budsjett]]-Underholdning[[#This Row],[Faktisk]]","v":{"v":0,"d":"kr 0.00"}}]
[null,null,"Andre (trykk på TAB i siste kolonnen i denne raden for å legge til rad)",null,null,{"$f":"Emballasje[[#This Row],[Budsjett]]-Emballasje[[#This Row],[Faktisk]]","v":{"v":0,"d":"kr 0.00"}},{"$nulls":4},"Restaurantbesøk",null,null,{"$f":"Underholdning[[#This Row],[Budsjett]]-Underholdning[[#This Row],[Faktisk]]","v":{"v":0,"d":"kr 0.00"}}]
[{"$nulls":10},"Andre (trykk på TAB i siste kolonnen i denne raden for å legge til rad)",null,null,{"$f":"Underholdning[[#This Row],[Budsjett]]-Underholdning[[#This Row],[Faktisk]]","v":{"v":0,"d":"kr 0.00"}}]
[null,null,"Totalt",{"$f":"SUBTOTAL(109,Emballasje[Budsjett])","v":{"v":0,"d":"kr 0.00"}},{"$f":"SUBTOTAL(109,Emballasje[Faktisk])","v":{"v":0,"d":"kr 0.00"}},{"$f":"SUBTOTAL(109,Emballasje[Differanse])","v":{"v":0,"d":"kr 0.00"}},{"$nulls":4},"Totalt",{"$f":"SUBTOTAL(109,Underholdning[Budsjett])","v":{"v":0,"d":"kr 0.00"}},{"$f":"SUBTOTAL(109,Underholdning[Faktisk])","v":{"v":0,"d":"kr 0.00"}},{"$f":"SUBTOTAL(109,Underholdning[Differanse])","v":{"v":0,"d":"kr 0.00"}}]
[]
[null,null,"REISE",{"$nulls":7},"DIVERSE"]
[null,null,"Artikkel","Budsjett","Faktisk","Differanse",{"$nulls":4},"Artikkel","Budsjett","Faktisk","Differanse"]
[null,null,"Flyreise",null,null,{"$f":"Reise[[#This Row],[Budsjett]]-Reise[[#This Row],[Faktisk]]","v":{"v":0,"d":"kr 0.00"}},{"$nulls":4},"Bilder",null,null,{"$f":"Diverse[[#This Row],[Budsjett]]-Diverse[[#This Row],[Faktisk]]","v":{"v":0,"d":"kr 0.00"}}]
[null,null,"Overnatting",null,null,{"$f":"Reise[[#This Row],[Budsjett]]-Reise[[#This Row],[Faktisk]]","v":{"v":0,"d":"kr 0.00"}},{"$nulls":4},"Drivstoff ",null,null,{"$f":"Diverse[[#This Row],[Budsjett]]-Diverse[[#This Row],[Faktisk]]","v":{"v":0,"d":"kr 0.00"}}]
[null,null,"Transport",null,null,{"$f":"Reise[[#This Row],[Budsjett]]-Reise[[#This Row],[Faktisk]]","v":{"v":0,"d":"kr 0.00"}},{"$nulls":4},"Andre (trykk på TAB i siste kolonnen i denne raden for å legge til rad)",null,null,{"$f":"Diverse[[#This Row],[Budsjett]]-Diverse[[#This Row],[Faktisk]]","v":{"v":0,"d":"kr 0.00"}}]
[null,null,"Andre (trykk på TAB i siste kolonnen i denne raden for å legge til rad)",null,null,{"$f":"Reise[[#This Row],[Budsjett]]-Reise[[#This Row],[Faktisk]]","v":{"v":0,"d":"kr 0.00"}}]
[null,null,"Totalt",{"$f":"SUBTOTAL(109,Reise[Budsjett])","v":{"v":0,"d":"kr 0.00"}},{"$f":"SUBTOTAL(109,Reise[Faktisk])","v":{"v":0,"d":"kr 0.00"}},{"$f":"SUBTOTAL(109,Reise[Differanse])","v":{"v":0,"d":"kr 0.00"}},{"$nulls":4},"Totalt",{"$f":"SUBTOTAL(109,Diverse[Budsjett])","v":{"v":0,"d":"kr 0.00"}},{"$f":"SUBTOTAL(109,Diverse[Faktisk])","v":{"v":0,"d":"kr 0.00"}},{"$f":"SUBTOTAL(109,Diverse[Differanse])","v":{"v":0,"d":"kr 0.00"}}]